bitfinex/quotes_BTCUSD_20220211
["timestamp","ask_amount","ask_price","bid_price","bid_amount"]
[1644540501794,0.04413884,42942.0,42933.0,0.07794012]
[1644540501994,0.04413884,42942.0,42930.0,0.0429]
[1644540502267,0.23305699,42942.0,42930.0,0.12084012]
[1644540502458,0.23305699,42942.0,42934.0,0.34410768]
[1644540502857,0.23305699,42942.0,42934.0,0.058267]
[1644540503055,0.23305699,42942.0,42936.0,0.00024207]
[1644540504163,0.23305699,42942.0,42926.0,0.03]
[1644540504164,0.03714508,42927.0,42926.0,0.03]
[1644540504758,0.27989832,42927.0,42926.0,0.03]
[1644540504960,0.56409591,42927.0,42926.0,0.03]
[1644540505163,0.8998682,42927.0,42926.0,0.03]
[1644540505357,0.8998682,42927.0,42926.0,0.0296635]
[1644540505358,0.9998682,42927.0,42926.0,0.0296635]
[1644540505557,1.26316858,42927.0,42926.0,0.0296635]
[1644540505997,0.66409591,42927.0,42926.0,0.0296635]
[1644540506999,0.27989832,42927.0,42926.0,0.0296635]
[1644540507299,0.03714508,42927.0,42926.0,0.0296635]
[1644540508904,0.04407495,42929.0,42926.0,0.0296635]
[1644540509099,0.04407495,42929.0,42926.0,0.10760362]
[1644540509945,0.04407495,42929.0,42928.0,0.07794012]
[1644540510146,0.04407495,42929.0,42928.0,0.39099043]
[1644540510544,0.04407495,42929.0,42928.0,0.07794012]
[1644540510743,0.04407495,42929.0,42928.0,0.2964119]
[1644540510945,0.05828,42935.0,42927.0,0.07794012]
[1644540511145,0.05828,42935.0,42928.0,0.3090624]
[1644540511345,0.05828,42935.0,42927.0,0.07794012]
[1644540511547,0.05828,42935.0,42929.0,0.0002881]
[1644540511548,0.08515921,42930.0,42929.0,0.0002881]
[1644540511748,0.28515921,42930.0,42929.0,0.0002881]
[1644540512145,0.47178518,42930.0,42929.0,0.0002881]
[1644540512346,0.8377178,42930.0,42929.0,0.0002881]
[1644540512544,0.8377178,42930.0,42926.0,0.0296635]
[1644540512748,0.8377178,42930.0,42927.0,0.00028811]
[1644540512749,0.34345121,42930.0,42927.0,0.00028811]
[1644540512951,0.258292,42930.0,42927.0,0.00028811]
[1644540513146,0.258292,42930.0,42929.0,0.07794012]
[1644540513347,0.2,42930.0,42929.0,0.07794012]
[1644540513792,0.2,42930.0,42929.0,0.42877583]
[1644540513993,0.2,42930.0,42929.0,0.07794012]
[1644540515194,0.2,42930.0,42928.0,0.26192862]
[1644540515993,0.2,42930.0,42929.0,0.07794012]
[1644540525846,0.2,42930.0,42927.0,0.00025128]
[1644540526052,0.25,42930.0,42927.0,0.00025128]
[1644540526544,0.19361122,42929.0,42927.0,0.00025128]
[1644540526945,0.25,42930.0,42926.0,0.0296635]
[1644540527144,0.058288,42929.0,42926.0,0.02991479]
[1644540527444,0.19881157,42927.0,42926.0,0.02991479]
[1644540527644,0.25,42930.0,42926.0,0.02991479]
[1644540527645,0.2,42930.0,42926.0,0.02991479]
[1644540527845,0.25,42930.0,42926.0,0.30035501]
[1644540528045,0.25,42930.0,42926.0,0.37793098]
[1644540528244,0.25,42930.0,42926.0,0.37818227]
[1644540528701,0.25,42930.0,42926.0,0.30035501]
[1644540528898,0.2,42930.0,42929.0,0.07782726]
[1644540529900,0.17,42930.0,42929.0,0.07782726]
[1644540532344,0.17,42930.0,42929.0,0.12072726]
[1644540532544,0.0001,42930.0,42929.0,0.12072726]
[1644540533346,0.0001,42930.0,42929.0,0.17072726]
[1644540533544,0.05,42945.0,42931.0,0.058253]
[1644540533744,0.05,42945.0,42934.0,0.058255]
[1644540533948,0.3,42949.0,42939.0,0.07782726]
[1644540534145,0.03925152,42949.0,42939.0,0.12072726]
[1644540534344,0.02334661,42949.0,42939.0,0.12072726]
[1644540534746,0.02334661,42949.0,42947.0,0.07782726]
[1644540535847,0.06880116,42949.0,42947.0,0.07782726]
[1644540536503,0.00195014,42957.0,42948.0,0.3429]
[1644540536701,0.04545455,42968.0,42957.0,1.0]
[1644540536898,0.04545455,42968.0,42960.0,0.05]
[1644540537094,0.04545455,42968.0,42967.0,0.07782726]
[1644540537295,0.00026918,42978.0,42967.0,0.07782726]
[1644540537296,0.00026918,42978.0,42969.0,0.058206]
[1644540537494,0.01026918,42979.0,42977.0,0.07782726]
[1644540537696,0.00026918,42978.0,42977.0,0.38418919]
[1644540537893,0.01,42979.0,42977.0,0.38418919]
[1644540537894,0.01,42979.0,42977.0,0.12072726]
[1644540538894,0.01,42979.0,42977.0,0.47303203]
[1644540539499,0.058204,42987.0,42977.0,0.47303203]
[1644540539500,0.06,42989.0,42977.0,0.47303203]
[1644540539767,0.01,42989.0,42987.0,0.05]
[1644540539954,0.01,42989.0,42987.0,0.17072726]
[1644540540157,0.01,42989.0,42987.0,0.12072726]
[1644540540952,0.01,42989.0,42987.0,0.13702129]
[1644540541664,0.01,42989.0,42987.0,0.05919403]
[1644540541956,0.33138843,42988.0,42987.0,0.01629403]
[1644540542154,0.6501521,42988.0,42987.0,0.01629403]
[1644540542353,0.7501521,42988.0,42987.0,0.01629403]
[1644540542955,0.7501521,42988.0,42971.0,0.0429]
[1644540542956,0.01628597,42987.0,42971.0,0.0429]
[1644540543158,0.01628597,42987.0,42960.0,0.07782726]
[1644540543159,0.06535521,42965.0,42960.0,0.07782726]
[1644540543594,0.080001,42968.0,42956.0,0.07782726]
[1644540543793,0.07051859,42961.0,42944.0,0.24259224]
[1644540543994,0.07051859,42961.0,42960.0,0.2892961]
[1644540544199,0.07051859,42961.0,42944.0,0.5]
[1644540544200,0.07051859,42961.0,42955.0,7.601e-05]
[1644540544397,0.3,42960.0,42955.0,7.601e-05]
[1644540544595,0.32166059,42961.0,42955.0,7.601e-05]
[1644540544797,0.42166059,42961.0,42955.0,7.601e-05]
[1644540544996,0.42166059,42961.0,42943.0,0.0022]
[1644540544997,0.75,42960.0,42943.0,0.0022]
[1644540545196,0.05,42952.0,42943.0,0.0022]
[1644540545397,0.05,42944.0,42943.0,0.0022]
[1644540545599,0.13307016,42944.0,42943.0,0.0022]
[1644540545897,0.17597016,42944.0,42943.0,0.08002726]
[1644540546297,0.0429,42944.0,42943.0,0.31981977]
[1644540546495,0.16516525,42955.0,42943.0,0.31981977]
[1644540546496,0.416511,42954.0,42943.0,0.31981977]
[1644540546700,0.0429,42953.0,42943.0,0.31981977]
[1644540546897,0.30417861,42952.0,42943.0,0.0022]
[1644540547098,0.0429,42951.0,42943.0,0.0022]
[1644540547349,0.0429,42951.0,42943.0,0.08002726]
[1644540547350,0.058259,42947.0,42943.0,0.08002726]
[1644540547550,0.05,42952.0,42943.0,0.0022]
[1644540547757,0.1941276,42952.0,42948.0,0.28341752]
[1644540547948,0.05,42951.0,42943.0,0.0022]
[1644540548349,0.24035993,42947.0,42945.0,0.07782726]
[1644540548549,0.30489446,42947.0,42945.0,0.07782726]
[1644540548749,0.24035993,42947.0,42945.0,0.07782726]
[1644540549148,0.24035993,42947.0,42943.0,0.0022]
[1644540549951,0.058263,42947.0,42946.0,0.26707022]
[1644540551094,0.01629403,42947.0,42946.0,0.34489748]
[1644540551295,0.01629403,42947.0,42946.0,0.66064582]
[1644540551499,0.01629403,42947.0,42946.0,0.70354582]
[1644540551697,0.22166126,42974.0,42948.0,0.15]
[1644540551899,0.05,42969.0,42964.0,0.07782726]
[1644540552095,0.1560381,42966.0,42965.0,0.0429]
[1644540552297,0.46404691,42966.0,42962.0,0.07782726]
[1644540552495,0.46404691,42966.0,42958.0,0.0429]
[1644540553696,0.06862,42966.0,42958.0,0.0429]
[1644540553896,0.00050907,42964.0,42962.0,0.07782726]
[1644540554752,0.06862,42966.0,42962.0,0.07782726]
[1644540554947,0.00050907,42965.0,42962.0,0.07782726]
[1644540555346,0.00050907,42965.0,42959.0,0.0429]
[1644540555551,0.00050907,42965.0,42964.0,0.07782726]
[1644540555947,0.06862,42966.0,42964.0,0.37602599]
[1644540556147,0.75407109,42975.0,42964.0,0.37602599]
[1644540556348,0.00050907,42967.0,42964.0,0.29819873]
[1644540556648,0.00050907,42967.0,42966.0,0.07782726]
[1644540557249,0.00027109,42975.0,42971.0,0.26146688]
[1644540557452,0.00185743,42975.0,42971.0,0.26146688]
[1644540558497,0.00185743,42975.0,42970.0,0.0429]
[1644540558498,0.00027109,42976.0,42970.0,0.0429]
[1644540558699,0.00046441,42975.0,42971.0,0.07782726]
[1644540559501,0.00027109,42976.0,42971.0,0.07782726]
[1644540559704,0.33111456,42977.0,42971.0,0.07782726]
[1644540559900,0.24257473,42979.0,42970.0,0.0429]
[1644540560100,0.00046441,42975.0,42970.0,0.0429]
[1644540560301,2.22132989,42972.0,42970.0,0.0429]
[1644540560505,2.45649773,42972.0,42959.0,0.0429]
[1644540560703,2.50649773,42972.0,42955.0,0.07782726]
[1644540560902,2.55649773,42972.0,42955.0,0.07782726]
[1644540561301,0.2742287,42969.0,42960.0,0.29787094]
[1644540561503,0.2742287,42969.0,42960.0,0.07782726]
[1644540561504,0.00046946,42968.0,42960.0,0.07782726]
[1644540562003,0.24059768,42965.0,42960.0,0.07782726]
[1644540562270,0.45238364,42969.0,42960.0,0.07782726]
[1644540562271,0.39414864,42969.0,42960.0,0.07782726]
[1644540562455,0.3242287,42969.0,42961.0,0.27074097]
[1644540562657,0.00046947,42966.0,42961.0,0.27074097]
[1644540562855,0.00046947,42966.0,42963.0,0.07782726]
[1644540563456,0.02179907,42971.0,42963.0,0.07782726]
[1644540563656,0.00046947,42967.0,42963.0,0.07782726]
[1644540563857,0.00046947,42967.0,42960.0,0.07782726]
[1644540564062,0.00046947,42967.0,42955.0,0.07782726]
[1644540564257,0.05,42965.0,42954.0,0.27511982]
[1644540564456,0.00046947,42967.0,42954.0,0.27511982]
[1644540564657,0.22272737,42965.0,42958.0,0.07782726]
[1644540564859,0.05,42970.0,42961.0,0.07782726]
[1644540564860,0.058235,42964.0,42961.0,0.07782726]
[1644540565059,0.00044784,42962.0,42961.0,0.33873901]
[1644540565257,0.00044784,42962.0,42961.0,0.07782726]
[1644540565858,0.05754604,42971.0,42961.0,0.07782726]
[1644540565859,0.2223485,42970.0,42961.0,0.07782726]
[1644540566098,0.00044545,42964.0,42956.0,0.05822844]
[1644540566298,0.00044545,42964.0,42963.0,0.07782726]
[1644540567099,0.058228,42968.0,42963.0,0.07782726]
[1644540567505,0.06594238,42957.0,42954.0,0.3]
[1644540567702,0.2723485,42970.0,42953.0,0.27260018]
[1644540567703,0.20163929,42969.0,42953.0,0.27260018]
[1644540567900,0.058237,42960.0,42953.0,0.27260018]
[1644540568502,0.058237,42960.0,42954.0,0.07782726]
[1644540569502,0.05,42963.0,42954.0,0.07782726]
[1644540569503,0.058234,42962.0,42954.0,0.07782726]
[1644540569759,0.00049195,42959.0,42954.0,0.07782726]
[1644540569953,0.00049195,42959.0,42958.0,0.07782726]
[1644540570157,2.22132989,42972.0,42958.0,0.31361111]
[1644540570352,2.22132989,42972.0,42968.0,0.07782726]
[1644540570552,0.058222,42970.0,42961.0,0.05821997]
[1644540570750,0.058222,42970.0,42962.0,0.33811466]
[1644540570952,0.058222,42970.0,42969.0,0.37742896]
[1644540571355,0.03910097,42971.0,42969.0,0.37742896]
[1644540571554,0.03910097,42971.0,42969.0,0.42032896]
[1644540571858,0.058215,42976.0,42969.0,0.42032896]
[1644540572051,0.058215,42976.0,42974.0,0.07782726]
[1644540572252,0.00027109,42978.0,42974.0,0.07782726]
[1644540572452,0.48246592,42984.0,42974.0,0.07782726]
[1644540572453,0.00027109,42980.0,42974.0,0.07782726]
[1644540572656,0.48246592,42984.0,42974.0,0.07782726]
[1644540572657,0.00027109,42981.0,42974.0,0.07782726]
[1644540572854,0.058212,42978.0,42974.0,0.07782726]
[1644540573699,0.058212,42978.0,42976.0,0.26118214]
[1644540574103,0.116432,42986.0,42976.0,0.26118214]
[1644540574104,0.05027109,42980.0,42977.0,0.36586162]
[1644540574401,0.058207,42981.0,42977.0,0.07782726]
[1644540574601,0.058207,42981.0,42979.0,0.07782726]
[1644540575203,0.058207,42981.0,42977.0,0.07782726]
[1644540575403,0.058207,42981.0,42974.0,0.1]
[1644540575702,0.058207,42981.0,42970.0,0.07782726]
[1644540575901,0.20835099,42978.0,42970.0,0.07782726]
[1644540576101,0.058216,42977.0,42972.0,0.07782726]
[1644540576399,0.058216,42977.0,42974.0,0.07782726]
[1644540576400,2.80601514,42977.0,42974.0,0.07782726]
[1644540577254,2.82495302,42977.0,42974.0,0.07782726]
[1644540577649,2.87495302,42977.0,42974.0,0.07782726]
[1644540579651,0.12715388,42977.0,42974.0,0.07782726]
[1644540580051,0.14677734,42977.0,42974.0,0.07782726]
[1644540580253,0.14677734,42977.0,42970.0,0.29386386]
[1644540580458,0.14677734,42977.0,42976.0,0.07782726]
[1644540580459,0.13160926,42977.0,42976.0,0.07782726]
[1644540580655,0.07339326,42977.0,42976.0,0.07782726]
[1644540580853,0.03856134,42977.0,42976.0,0.12072726]
[1644540581103,0.00048957,42978.0,42976.0,0.12072726]
[1644540581300,0.00048957,42978.0,42977.0,0.27614657]
[1644540581500,0.00048957,42978.0,42977.0,0.36904657]
[1644540581702,0.00027109,42983.0,42977.0,0.0429]
[1644540581901,0.00048956,42979.0,42977.0,0.0429]
[1644540582300,0.00048956,42979.0,42978.0,0.07782726]
[1644540582905,0.00027109,42984.0,42978.0,0.07782726]
[1644540583205,0.00049103,42981.0,42977.0,0.12072726]
[1644540583401,0.06315038,42984.0,42979.0,0.07782726]
[1644540583603,0.00027141,42982.0,42977.0,0.0429]
[1644540583805,0.06315038,42984.0,42976.0,0.03856134]
[1644540583806,0.31177065,42977.0,42976.0,0.03856134]
[1644540584202,0.6627106,42977.0,42976.0,0.03856134]
[1644540584602,0.49062586,42977.0,42976.0,0.03856134]
[1644540584863,0.05,42977.0,42976.0,0.03856134]
[1644540585262,0.058217,42978.0,42976.0,0.03856134]
[1644540585866,0.22010503,42977.0,42976.0,0.03856134]
[1644540586060,0.27010503,42977.0,42970.0,0.0001]
[1644540586264,0.05822,42976.0,42970.0,0.0001]
[1644540586466,0.23423952,42976.0,42970.0,0.0001]
[1644540586662,0.28423952,42976.0,42970.0,0.0001]
[1644540587361,0.08454594,42971.0,42970.0,0.0001]
[1644540587762,0.05,42971.0,42970.0,0.0001]
[1644540588164,0.05,42972.0,42970.0,0.0001]
[1644540588369,0.108235,42973.0,42970.0,0.3237471]
[1644540589206,0.108235,42973.0,42970.0,0.0001]
[1644540589609,0.05,42972.0,42970.0,0.0001]
[1644540589807,0.058215,42977.0,42970.0,0.07792726]
[1644540590005,0.058215,42977.0,42970.0,0.0001]
[1644540590208,0.03535242,42978.0,42977.0,0.27963978]
[1644540590406,0.03535242,42978.0,42975.0,0.07782726]
[1644540591409,0.03535242,42978.0,42975.0,0.4193098]
[1644540592010,0.03535242,42978.0,42977.0,0.07782726]
[1644540592272,0.03535242,42978.0,42977.0,0.38443467]
[1644540592863,0.03535242,42978.0,42977.0,0.38213558]
[1644540593064,0.03035242,42978.0,42977.0,0.38213558]
[1644540593263,0.00027141,42982.0,42977.0,0.17782726]
[1644540593463,0.00050844,42983.0,42977.0,0.17782726]
[1644540593668,0.00027141,42983.0,42977.0,0.1]
[1644540593864,0.00027141,42986.0,42984.0,0.07782726]
[1644540594065,0.00027141,42987.0,42984.0,0.07782726]
[1644540594266,0.08038119,42988.0,42984.0,0.07782726]
[1644540594267,0.0806526,42988.0,42984.0,0.07782726]
[1644540594467,0.13858419,42988.0,42984.0,0.07782726]
[1644540595067,0.13858419,42988.0,42984.0,0.40617277]
[1644540595266,0.18909265,42988.0,42984.0,0.40617277]
[1644540595667,0.18909265,42988.0,42984.0,0.07782726]
[1644540595668,0.13088965,42988.0,42984.0,0.07782726]
[1644540595870,0.09596301,42988.0,42984.0,0.07782726]
[1644540596096,0.14225258,42987.0,42984.0,0.07782726]
[1644540596301,0.19225258,42987.0,42984.0,0.07782726]
[1644540596596,0.04596301,42988.0,42984.0,0.07782726]
[1644540596797,0.10416501,42988.0,42984.0,0.40012396]
[1644540596998,0.09596301,42988.0,42986.0,0.07782726]
[1644540597198,0.04623442,42988.0,42975.0,0.0429]
[1644540597400,0.04623442,42988.0,42984.0,0.07782726]
[1644540597602,0.04596301,42988.0,42984.0,0.07782726]
[1644540597799,0.04545455,42988.0,42984.0,0.07782726]
[1644540598400,0.04468455,42988.0,42984.0,0.40972479]
[1644540598903,0.04512827,42988.0,42984.0,0.40972479]
[1644540599850,0.04468455,42988.0,42984.0,0.40972479]
[1644540600052,0.04512827,42988.0,42984.0,0.40972479]
[1644540600451,0.04512827,42988.0,42984.0,0.33189753]
[1644540600851,0.08019433,42988.0,42984.0,0.40972479]
[1644540601050,0.08019433,42988.0,42984.0,0.33189753]
[1644540601051,0.07975061,42988.0,42984.0,0.33189753]
[1644540601250,0.08019894,42988.0,42985.0,0.07782726]
[1644540602250,0.07975061,42988.0,42984.0,0.33189753]
[1644540602450,0.07975061,42988.0,42986.0,0.07782726]
[1644540604796,0.07475061,42988.0,42986.0,0.07782726]
[1644540604998,0.07475061,42988.0,42987.0,0.28426339]
[1644540605598,0.07475061,42988.0,42986.0,0.17782726]
[1644540605797,0.07475061,42988.0,42986.0,0.13024547]
[1644540606198,0.07475061,42988.0,42986.0,0.03024547]
[1644540608252,0.07475061,42988.0,42987.0,0.29222139]
[1644540608853,0.03968455,42988.0,42987.0,0.29222139]
[1644540609054,0.03968455,42988.0,42987.0,0.33512139]
[1644540609457,0.03968455,42988.0,42987.0,0.43512139]
[1644540611300,0.03968455,42988.0,42987.0,0.0429]
[1644540611503,0.03968455,42988.0,42987.0,0.1429]
[1644540611702,0.03968455,42988.0,42987.0,0.42842325]
[1644540612304,0.03968455,42988.0,42987.0,0.1429]
[1644540612503,0.03968455,42988.0,42987.0,0.4703708]
[1644540612504,0.03468455,42988.0,42987.0,0.4703708]
[1644540612803,0.0008512,42994.0,42989.0,0.6]
[1644540613004,0.0008512,42994.0,42990.0,0.72314547]
[1644540613005,0.00027191,42991.0,42990.0,0.72314547]
[1644540613202,0.0008512,42994.0,42992.0,0.15]
[1644540613401,0.0008512,42994.0,42993.0,0.0929]
[1644540613602,0.0008512,42994.0,42993.0,0.1429]
[1644540613801,0.0008512,42994.0,42993.0,0.0929]
[1644540615048,0.0008512,42994.0,42993.0,0.40279871]
[1644540615449,0.0008512,42994.0,42993.0,0.50279871]
[1644540617254,0.0008512,42994.0,42993.0,0.55279871]
[1644540617451,0.0003412,42994.0,42993.0,0.59941871]
[1644540617652,0.00051028,42996.0,42993.0,0.57966418]
[1644540617851,0.00051028,42996.0,42995.0,0.05]
[1644540618062,0.42,43003.0,42997.0,0.15]
[1644540618253,0.42,43003.0,42998.0,0.0429]
[1644540618517,0.49540875,43003.0,43001.0,0.03024547]
[1644540618816,0.42204082,43003.0,43002.0,0.0429]
[1644540619215,0.42,43003.0,43002.0,0.0429]
[1644540619620,0.49893984,43003.0,43002.0,0.0429]
[1644540619818,0.415,43003.0,43002.0,0.0429]
[1644540621520,0.415,43003.0,42997.0,0.11635143]
[1644540621716,0.415,43003.0,42994.0,0.63024547]
[1644540621717,0.415,43003.0,42994.0,0.53024547]
[1644540621916,0.0795443,42996.0,42994.0,0.53024547]
[1644540622120,0.0795443,42996.0,42986.0,0.19556679]
[1644540622121,0.0795443,42996.0,42986.0,0.05127462]
[1644540622358,0.0795443,42996.0,42986.0,0.02102915]
[1644540622359,0.07885835,42987.0,42986.0,0.02102915]
[1644540623555,0.29511613,42987.0,42986.0,0.02102915]
[1644540623958,0.34511613,42987.0,42986.0,0.02102915]
[1644540624555,0.058206,42987.0,42986.0,0.02102915]
[1644540624756,0.058193,42989.0,42986.0,0.02102915]
[1644540625657,0.08066603,42988.0,42986.0,0.02102915]
[1644540626100,0.08066603,42988.0,42986.0,6.619e-05]
[1644540626101,0.05,42988.0,42986.0,6.619e-05]
[1644540626300,0.28227524,42991.0,42986.0,6.619e-05]
[1644540626802,0.25199906,42990.0,42986.0,6.619e-05]
[1644540627002,0.07642316,42987.0,42986.0,6.619e-05]
[1644540627400,0.12642316,42987.0,42986.0,6.619e-05]
[1644540628001,0.07642316,42987.0,42986.0,6.619e-05]
[1644540628201,0.058198,42988.0,42986.0,6.619e-05]
[1644540629502,0.07239664,42987.0,42986.0,6.619e-05]
[1644540630752,0.12239664,42987.0,42986.0,6.619e-05]
[1644540632154,0.44167456,42987.0,42986.0,6.619e-05]
[1644540632555,0.49167456,42987.0,42986.0,6.619e-05]
[1644540632756,0.59167456,42987.0,42986.0,6.619e-05]
[1644540632954,0.44167456,42987.0,42986.0,6.619e-05]
[1644540633156,0.65432909,42987.0,42986.0,6.19e-06]
[1644540633354,1.52612909,42987.0,42986.0,6.19e-06]
[1644540634799,1.70080709,42987.0,42986.0,6.19e-06]
[1644540634999,1.58105256,42987.0,42986.0,6.19e-06]
[1644540635199,1.50865592,42987.0,42986.0,6.19e-06]
[1644540635402,1.52729539,42987.0,42986.0,6.19e-06]
[1644540636601,1.84570901,42987.0,42986.0,6.19e-06]
[1644540637457,1.74276935,42987.0,42986.0,6.19e-06]
[1644540637657,1.21019398,42987.0,42986.0,6.19e-06]
[1644540638558,1.47045626,42987.0,42986.0,6.19e-06]
[1644540638762,1.21019398,42987.0,42986.0,6.19e-06]
[1644540638958,1.27818347,42987.0,42986.0,6.19e-06]
[1644540639357,1.25736749,42987.0,42986.0,6.19e-06]
[1644540639761,1.68146604,42987.0,42986.0,6.19e-06]
[1644540639961,1.189378,42987.0,42986.0,6.19e-06]
[1644540640999,1.60798502,42987.0,42986.0,6.19e-06]
[1644540641197,1.189378,42987.0,42986.0,6.19e-06]
[1644540641398,1.58382919,42987.0,42986.0,6.19e-06]
[1644540642004,2.66066594,42987.0,42986.0,6.19e-06]
[1644540642207,2.66066594,42987.0,42970.0,0.0001]
[1644540642208,0.2,42978.0,42970.0,0.0001]
[1644540642402,0.13584482,42971.0,42970.0,0.0001]
[1644540642602,0.18584482,42971.0,42970.0,0.0001]
[1644540642802,0.38772205,42971.0,42970.0,0.0001]
[1644540643307,0.108238,42971.0,42970.0,0.0001]
[1644540643504,0.058237,42973.0,42970.0,0.0001]
[1644540644301,0.053237,42973.0,42970.0,0.0001]
[1644540646053,0.1429962,42984.0,42970.0,0.0001]
[1644540646054,0.058215,42978.0,42974.0,0.03024547]
[1644540646253,0.48874858,42985.0,42982.0,0.03024547]
[1644540646254,0.06873958,42985.0,42982.0,0.03024547]
[1644540646450,0.01873958,42985.0,42980.0,0.03024547]
[1644540646649,0.01873958,42985.0,42972.0,0.3]
[1644540646847,0.01873958,42985.0,42980.0,0.03024547]
[1644540647548,0.058208,42984.0,42980.0,0.00029172]
[1644540648357,0.058208,42984.0,42977.0,0.0429]
[1644540648600,0.058208,42984.0,42980.0,0.00030482]
[1644540648801,0.01873958,42985.0,42980.0,0.28305939]
[1644540649000,0.06873958,42985.0,42980.0,0.28305939]
[1644540649201,0.06873958,42985.0,42980.0,0.31330486]
[1644540649202,0.01873958,42985.0,42980.0,0.31330486]
[1644540649402,0.05,42986.0,42980.0,0.31330486]
[1644540649606,0.058203,42987.0,42980.0,0.28305939]
[1644540650002,0.058203,42987.0,42980.0,0.31330486]
[1644540650201,0.058203,42987.0,42982.0,0.03024547]
[1644540650603,0.0582,42989.0,42983.0,0.03024547]
[1644540650803,0.0582,42989.0,42981.0,0.33759339]
[1644540651009,0.0005029,42988.0,42981.0,0.0429]
[1644540651902,0.058204,42987.0,42982.0,0.03024547]
[1644540652103,0.058204,42987.0,42982.0,0.31788003]
[1644540652355,0.058204,42987.0,42981.0,0.0429]
[1644540653053,0.053204,42987.0,42981.0,0.0429]
[1644540653254,0.053204,42987.0,42982.0,0.03024547]
[1644540653855,0.00044538,42988.0,42982.0,0.03024547]
[1644540654057,0.00044538,42988.0,42984.0,0.03024547]
[1644540654356,0.00027191,42993.0,42987.0,0.25663224]
[1644540654557,0.00027191,42994.0,42988.0,0.07684547]
[1644540654758,0.116397,42995.0,42988.0,0.07684547]
[1644540654759,0.00027191,42995.0,42994.0,0.03024547]
[1644540654957,0.00147533,42997.0,42995.0,0.03024547]
[1644540655157,0.00147533,42997.0,42995.0,0.0466]
[1644540655855,0.19688121,42998.0,42995.0,0.0466]
[1644540656104,0.07118657,42997.0,42995.0,0.0466]
[1644540656308,0.43371915,42998.0,42995.0,0.0466]
[1644540656503,0.19688121,42998.0,42995.0,0.0466]
[1644540656706,0.03406981,42999.0,42995.0,0.0466]
[1644540656905,0.03434168,42999.0,42996.0,0.03024547]
[1644540657104,0.03453732,42999.0,42996.0,0.03024547]
[1644540657304,0.00046751,42999.0,42997.0,0.29269452]
[1644540657504,0.00046751,42999.0,42997.0,0.29350461]
[1644540657903,0.00027187,43002.0,42997.0,0.29350461]
[1644540658103,0.41027187,43003.0,42996.0,0.25137649]
[1644540658305,0.00046751,43000.0,42996.0,0.13502347]
[1644540658705,0.00046751,43000.0,42997.0,0.05817524]
[1644540658909,0.00046751,43000.0,42998.0,0.2858291]
[1644540659107,0.00027187,43002.0,42999.0,0.03024547]
[1644540659306,0.41027187,43003.0,43000.0,0.058172]
[1644540659606,0.00038747,43001.0,43000.0,0.4005324]
[1644540659855,0.00038747,43001.0,43000.0,0.67129873]
[1644540660058,0.00038747,43001.0,43000.0,0.37553833]
[1644540660259,0.00027187,43003.0,43000.0,0.82553833]
[1644540660455,0.04700418,43007.0,43000.0,0.254772]
[1644540660456,0.00027187,43006.0,43000.0,0.254772]
[1644540660661,0.04545455,43007.0,43005.0,0.03024547]
[1644540660862,0.00027187,43006.0,43005.0,0.07684547]
[1644540661055,0.04545455,43007.0,43005.0,0.0466]
[1644540661255,0.04545455,43007.0,43005.0,0.07684547]
[1644540661459,0.04545455,43007.0,43006.0,0.25302647]
[1644540661654,0.04545455,43007.0,43005.0,0.07684547]
[1644540662256,0.04045455,43007.0,43005.0,0.0466]
[1644540662860,0.56183348,43006.0,42998.0,0.0466]
[1644540663258,0.56210535,43006.0,42998.0,0.0466]
[1644540663510,0.08954005,43001.0,42993.0,0.03024547]
[1644540663707,0.08954005,43001.0,42991.0,0.03024547]
[1644540663908,0.20011395,43000.0,42993.0,0.38102089]
[1644540664110,0.20038582,43000.0,42993.0,0.38102089]
[1644540664307,0.00050954,42999.0,42993.0,0.38102089]
[1644540664507,0.00078141,42999.0,42993.0,0.38102089]
[1644540665108,0.00027187,42999.0,42993.0,0.38102089]
[1644540665311,0.20011395,43000.0,42997.0,0.058178]
[1644540665312,0.00027187,43000.0,42997.0,0.058178]
[1644540665510,0.00050954,42998.0,42997.0,0.058178]
[1644540665711,0.00050954,42998.0,42997.0,0.08842347]
[1644540666311,0.00027187,43003.0,42997.0,0.08842347]
[1644540666511,0.79203463,43004.0,42997.0,0.08842347]
[1644540666815,0.79203463,43004.0,42997.0,0.03024547]
[1644540666816,0.00050954,43000.0,42997.0,0.03024547]
[1644540667279,0.00050954,43000.0,42994.0,0.2849664]
[1644540667470,0.00050954,43000.0,42993.0,0.42283741]
[1644540667673,0.00027187,43003.0,42991.0,0.03024547]
[1644540667874,0.28138407,42997.0,42990.0,0.11636516]
[1644540668078,0.28138407,42997.0,42987.0,0.01981972]
[1644540668079,0.19106749,42992.0,42987.0,0.01981972]
[1644540668275,0.07723684,42990.0,42987.0,0.01981972]
[1644540668674,0.44767179,42996.0,42988.0,0.03024547]
[1644540668878,0.19712661,42997.0,42988.0,0.03024547]
[1644540669378,0.00027187,42999.0,42988.0,0.03024547]
[1644540669575,0.058188,42999.0,42988.0,0.03024547]
[1644540669875,0.05,42998.0,42988.0,0.03024547]
[1644540670074,0.00027187,42999.0,42989.0,0.05818919]
[1644540670277,0.11165487,43000.0,42994.0,0.03024547]
[1644540670474,0.05,43002.0,42992.0,0.03024547]
[1644540670475,0.00027242,42999.0,42992.0,0.03024547]
[1644540670674,0.00027242,43000.0,42992.0,0.03024547]
[1644540670876,0.01,43009.0,42985.0,0.17456638]
[1644540670877,0.22976532,42997.0,42985.0,0.11637838]
[1644540671110,0.08678774,42993.0,42985.0,0.03024547]
[1644540671912,0.38993149,42993.0,42988.0,0.33714976]
[1644540672512,0.38993149,42993.0,42985.0,0.03024547]
[1644540672713,0.38993149,42993.0,42984.0,0.05819612]
[1644540673511,0.38993149,42993.0,42986.0,0.28524739]
[1644540673711,0.43993149,42993.0,42986.0,0.28524739]
[1644540673911,0.058198,42992.0,42986.0,0.28524739]
[1644540674773,0.42539945,42996.0,42988.0,0.03024547]
[1644540674956,0.36719545,42996.0,42985.0,0.13024547]
[1644540675154,0.41719545,42996.0,42985.0,0.03024547]
[1644540675357,0.32912251,43006.0,42985.0,0.03024547]
[1644540675555,0.27907857,43002.0,42991.0,0.35231884]
[1644540675756,0.32907857,43002.0,42985.0,0.03024547]
[1644540676056,0.058196,42996.0,42988.0,0.03024547]
[1644540676657,0.058196,42996.0,42983.0,0.30306122]
[1644540676857,0.058196,42996.0,42988.0,0.26303245]
[1644540677061,0.08349682,42991.0,42988.0,0.29327792]
[1644540677458,0.08349682,42991.0,42983.0,0.46125699]
[1644540677659,0.08349682,42991.0,42988.0,0.03024547]
[1644540677857,0.08349682,42991.0,42983.0,0.05819577]
[1644540678059,0.07028902,42983.0,42982.0,0.03024547]
[1644540678604,0.07028902,42983.0,42982.0,0.28679303]